bitfinex/quotes_ETHUSD_20240822
["timestamp","ask_amount","ask_price","bid_price","bid_amount"]
[1724353440313,1.60133582,2612.1,2611.7,7.65765]
[1724353440539,5.42973582,2612.1,2611.6,7.4734921]
[1724353440850,9.25782582,2612.2,2611.7,3.82891]
[1724353441023,3.82837,2612.1,2611.7,3.82891]
[1724353441434,5.42970582,2612.1,2611.7,3.82891]
[1724353441757,1.60133582,2612.1,2611.8,3.82876]
[1724353441968,5.8273278,2612.3,2611.8,3.82876]
[1724353441969,1.60133582,2612.2,2611.9,3.8286]
[1724353442138,1.60133582,2612.3,2611.9,2.4904]
[1724353442458,1.60133582,2612.4,2612.2,3.82811]
[1724353442657,1.60133582,2612.4,2612.3,6.31844]
[1724353442811,1.60133582,2612.5,2612.3,6.31844]
[1724353443145,1.60133582,2612.6,2612.5,3.82775]
[1724353443366,1.60133582,2612.9,2612.6,6.31799]
[1724353443524,1.60133582,2613.0,2612.8,3.82731]
[1724353444348,1.60133582,2613.0,2612.9,3.82716]
[1724353444553,1.60133582,2613.2,2612.9,3.82716]
[1724353445533,1.60133582,2613.2,2612.8,1.01453]
[1724353445753,1.60133582,2613.1,2612.8,1.01453]
[1724353446668,1.60133582,2613.0,2612.6,6.31799]
[1724353448172,1.60133582,2613.0,2612.4,3.0]
[1724353448356,5.42864582,2612.8,2612.3,6.26126]
[1724353448745,5.42863582,2612.9,2612.4,3.82787]
[1724353448927,5.42863582,2612.9,2612.4,7.65569]
[1724353449525,5.42863582,2612.9,2612.4,8.664589]
[1724353449694,1.60133582,2612.9,2612.5,3.82774]
[1724353451175,1.60133582,2612.9,2612.6,7.65505]
[1724353451669,1.60133582,2613.0,2612.7,3.82745]
[1724353452363,1.60133582,2612.9,2612.6,6.30417]
[1724353452676,1.60133582,2613.0,2612.6,10.1317]
[1724353452834,1.60133582,2613.0,2612.6,10.54484615]
[1724353453290,1.60133582,2613.0,2612.6,6.30417]
[1724353453774,1.60133582,2613.0,2612.7,3.82745]
[1724353455595,1.60133582,2613.0,2612.6,6.30417]
[1724353456084,5.42835582,2613.0,2612.6,2.4767]
[1724353456290,5.42835582,2613.0,2612.4,10.13228]
[1724353456587,5.42835582,2613.0,2612.4,11.145508]
[1724353456759,5.42835582,2613.0,2612.5,3.82774]
[1724353456969,9.25546582,2613.0,2612.5,3.82774]
[1724353457380,3.82716,2612.9,2612.4,7.317718]
[1724353457584,3.82716,2612.9,2612.4,6.30449]
[1724353457797,5.42849582,2612.9,2612.4,6.30449]
[1724353458000,3.82716,2612.9,2612.4,6.30449]
[1724353458202,5.42835582,2613.0,2612.4,10.13229]
[1724353458955,5.42835582,2613.0,2612.4,6.30449]
[1724353459155,5.42835582,2613.0,2612.5,3.82763]
[1724353459302,5.42835582,2613.0,2612.6,3.8276]
[1724353459498,3.82702,2613.0,2612.6,3.8276]
[1724353459939,5.42835582,2613.0,2612.6,3.8276]
[1724353460106,3.82702,2613.0,2612.6,3.8276]
[1724353461743,1.60133582,2613.1,2612.7,3.8274]
[1724353462667,3.82683,2613.2,2612.7,3.8274]
[1724353462668,1.60133582,2613.2,2612.9,2.4369]
[1724353462802,5.42777582,2613.4,2612.9,6.26399]
[1724353463618,9.25428582,2613.4,2612.9,6.26399]
[1724353463806,5.42777582,2613.4,2612.9,6.26399]
[1724353464999,9.25428582,2613.4,2612.9,6.26399]
[1724353465202,5.42777582,2613.4,2612.9,6.26399]
[1724353465426,9.25431582,2613.4,2612.9,6.26399]
[1724353466544,5.42777582,2613.4,2612.9,2.4369]
[1724353466745,5.42777582,2613.4,2612.8,3.8273]
[1724353466746,3.82675,2613.2,2612.8,3.8273]
[1724353467045,3.82675,2613.2,2612.7,6.26214]
[1724353467244,3.82675,2613.2,2612.7,7.271103]
[1724353468639,5.42792582,2613.3,2612.8,3.82729]
[1724353469459,3.82659,2613.3,2612.8,7.65452]
[1724353469754,3.82659,2613.3,2612.8,3.82723]
[1724353469962,3.82659,2613.3,2612.9,0.7270893]
[1724353470377,3.82688,2613.1,2612.7,3.443663]
[1724353470671,3.82672,2613.2,2612.7,6.26202]
[1724353470830,3.82672,2613.2,2612.8,3.82727]
[1724353472862,3.82652,2613.4,2612.9,3.82714]
[1724353473374,7.65308,2613.4,2612.9,3.82714]
[1724353475467,7.65307,2613.4,2612.9,3.82714]
[1724353475671,3.82658,2613.3,2612.9,3.82714]
[1724353476638,3.82658,2613.3,2612.8,3.8273]
[1724353476827,3.82658,2613.3,2612.8,4.836232]
[1724353478190,1.59741215,2613.4,2612.9,3.82714]
[1724353478378,1.59741215,2613.4,2613.1,3.82674]
[1724353478884,1.59741215,2613.4,2613.3,10.08584]
[1724353479024,1.59741215,2613.4,2613.3,13.08584]
[1724353479225,1.59741215,2613.4,2613.3,14.394424]
[1724353479638,1.59741215,2613.4,2613.3,18.220994]
[1724353479800,1.59741215,2613.4,2613.3,18.770994]
[1724353482502,0.76623953,2613.4,2613.3,22.597564]
[1724353482648,3.94681721,2614.5,2614.2,6.12254]
[1724353483064,3.94681721,2614.5,2614.3,3.82509]
[1724353484034,3.94681721,2614.5,2614.4,3.82496]
[1724353486398,3.94681721,2614.5,2614.2,6.12243]
[1724353486598,3.94681721,2614.5,2614.2,7.417221]
[1724353487230,7.77165721,2614.5,2614.0,3.0]
[1724353487429,2.00133137,2614.5,2614.0,3.82554]
[1724353487728,2.00133137,2614.4,2614.0,3.82554]
[1724353488283,5.82637137,2614.4,2613.9,5.2973]
[1724353488519,2.00133137,2614.3,2613.9,9.12299]
[1724353488838,2.00133137,2614.3,2613.9,10.417861]
[1724353489123,2.00133137,2614.3,2614.0,3.82554]
[1724353489668,5.82617137,2614.5,2613.9,6.592171]
[1724353489829,4.35713137,2614.5,2613.9,8.120471]
[1724353489976,4.35713137,2614.5,2613.9,6.8256]
[1724353490180,3.82497,2614.4,2613.9,6.8256]
[1724353490681,4.35713137,2614.5,2614.0,3.82555]
[1724353490682,7.77978099,2614.5,2614.0,3.82555]
[1724353491081,6.18062,2614.5,2614.0,3.82555]
[1724353492405,6.18062,2614.5,2614.0,3.82547]
[1724353493729,6.18062,2614.5,2614.0,3.82546]
[1724353494023,6.18062,2614.5,2614.0,7.65093]
[1724353494379,6.18062,2614.5,2614.0,3.82546]
[1724353494776,6.18062,2614.5,2614.0,7.65093]
[1724353496285,6.18062,2614.5,2614.0,3.82546]
[1724353497930,6.18062,2614.5,2614.0,7.65094]
[1724353498127,2.3558,2614.5,2614.1,3.82538]
[1724353499198,6.18065,2614.5,2614.0,7.65092]
[1724353499401,6.18065,2614.5,2614.0,3.82546]
[1724353499588,3.82499,2614.4,2614.0,3.82546]
[1724353499787,3.82562,2614.0,2613.4,2.2973]
[1724353500096,3.82585,2613.8,2613.3,3.82649]
[1724353500300,6.3188,2614.0,2612.9,3.82703]
[1724353500501,5.42445099,2614.2,2612.9,3.82703]
[1724353500502,2.3558,2613.6,2613.1,3.82678]
[1724353500700,2.3558,2613.6,2613.2,3.82664]
[1724353500918,3.826,2613.7,2613.2,4.209284]
[1724353501632,3.826,2613.7,2613.3,3.82657]
[1724353501999,3.826,2613.7,2613.2,0.382664]
[1724353502213,3.826,2613.7,2613.1,3.82674]
[1724353503624,3.826,2613.7,2613.2,3.82671]
[1724353506073,6.1816,2613.9,2613.4,3.82635]
[1724353506656,10.0074,2613.9,2613.4,3.82635]
[1724353506838,6.1816,2613.9,2613.4,3.82635]
[1724353507036,10.00738,2613.9,2613.4,3.82635]
[1724353507220,3.82585,2613.8,2613.3,6.26197]
[1724353507554,3.82585,2613.8,2613.3,7.270828]
[1724353508344,6.18158,2613.9,2613.4,3.82641]
[1724353508846,3.82578,2613.9,2613.4,3.82641]
[1724353509910,3.82578,2613.9,2613.4,7.65273]
[1724353510112,9.25072099,2613.9,2613.4,3.82632]
[1724353510346,7.65156,2613.9,2613.4,3.82632]
[1724353510714,3.82578,2613.9,2613.4,3.82632]
[1724353510913,3.82578,2613.9,2613.4,4.9360418]
[1724353511310,3.82584,2613.8,2613.4,1.1097218]
[1724353511513,3.82584,2613.8,2613.3,2.4354]
[1724353511764,3.82584,2613.8,2613.3,6.26192]
[1724353511918,9.25076099,2613.9,2613.3,6.26192]
[1724353512267,7.65159,2613.9,2613.3,6.26192]
[1724353512413,9.25077099,2613.9,2613.4,3.82643]
[1724353512622,3.82587,2613.8,2613.4,3.82643]
[1724353512848,3.82587,2613.8,2613.3,6.26195]
[1724353513170,3.82587,2613.8,2613.4,1.008858]
[1724353513862,5.42503099,2613.8,2613.4,1.008858]
[1724353514364,3.826,2613.7,2613.4,1.008858]
[1724353514513,3.82628,2613.5,2613.0,6.13974]
[1724353514712,3.82618,2613.6,2613.1,3.82676]
[1724353515729,3.82618,2613.6,2613.2,3.82671]
[1724353515929,3.82599,2613.7,2613.3,0.382671]
[1724353516133,3.82599,2613.7,2613.2,3.82664]
[1724353516345,3.82614,2613.6,2613.2,3.82664]
[1724353518263,3.82614,2613.6,2613.1,3.82685]
[1724353518479,7.65235,2613.6,2613.1,3.82685]
[1724353518654,3.82614,2613.6,2613.1,3.82685]
[1724353518830,3.82614,2613.6,2613.2,0.996657]
[1724353519232,3.8263,2613.5,2613.1,3.82685]
[1724353519536,3.82639,2613.5,2612.9,3.82715]
[1724353519730,3.82639,2613.5,2613.0,3.0]
[1724353519985,3.82639,2613.5,2613.1,2.935515]
[1724353520277,1.59916099,2613.6,2613.1,6.762285]
[1724353520487,1.59916099,2613.8,2613.4,3.82629]
[1724353520665,1.59916099,2613.9,2613.5,2.3635]
[1724353520836,1.9913931,2614.1,2613.6,4.445041]
[1724353520837,5.42456099,2614.1,2613.6,4.445041]
[1724353521362,5.42456099,2614.1,2613.6,8.271101]
[1724353521566,1.59916099,2614.0,2613.6,8.271091]
[1724353521964,5.42456099,2614.1,2613.6,8.271091]
[1724353522181,5.42456099,2614.1,2613.6,8.271081]
[1724353522381,5.42456099,2614.1,2613.6,8.271091]
[1724353522585,5.42456099,2614.1,2613.6,4.445031]
[1724353522789,5.42456099,2614.1,2613.7,1.0634591]
[1724353524041,9.25008099,2614.1,2613.7,1.0634591]
[1724353524440,5.42456099,2614.1,2613.7,1.0634591]
[1724353527435,9.25005099,2614.1,2613.7,1.0634591]
[1724353527642,5.42456099,2614.1,2613.7,1.0634591]
[1724353528181,1.59916099,2614.1,2613.8,0.48895091]
[1724353528353,5.42442099,2614.2,2613.8,0.48895091]
[1724353528557,3.82542,2614.1,2613.8,0.48895091]
[1724353529578,5.42458099,2614.1,2613.8,0.48895091]
[1724353529970,3.82542,2614.1,2613.8,0.48895091]
[1724353530345,1.59916099,2614.0,2613.8,0.48895091]
[1724353530876,5.42458099,2614.1,2613.8,0.48895091]
[1724353533404,5.42458099,2614.1,2613.7,3.82595]
[1724353534291,3.82562,2614.0,2613.5,2.3635]
[1724353534497,3.82562,2614.0,2613.5,9.18977]
[1724353534498,1.646,2613.9,2613.5,9.18977]
[1724353535003,5.47199,2613.7,2613.5,3.0]
[1724353535139,5.47199,2613.7,2613.3,5.3101]
[1724353535489,1.646,2613.5,2613.3,3.9819425]
[1724353535788,1.646,2613.7,2613.3,3.9819425]
[1724353535990,5.47206,2613.7,2613.3,3.9819425]
[1724353536322,1.646,2613.5,2613.1,2.3101]
[1724353536591,3.8263,2613.5,2613.1,5.3101]
[1724353536748,3.8263,2613.5,2613.1,9.13696]
[1724353537193,5.42546099,2613.5,2613.1,3.0]
[1724353537498,3.82643,2613.4,2613.0,3.0]
[1724353537646,5.42546099,2613.5,2613.0,3.0]
[1724353537993,5.42546099,2613.5,2613.0,6.82699]
[1724353538161,1.59916099,2613.5,2613.2,3.82669]
[1724353538504,1.59916099,2613.6,2613.2,3.82669]
[1724353539296,1.59916099,2613.5,2613.2,3.82669]
[1724353539490,1.59916099,2613.6,2613.2,5.2291246]
[1724353540291,1.59916099,2613.5,2613.2,5.2291246]
[1724353540702,1.59916099,2613.6,2613.2,9.0557546]
[1724353541015,1.59916099,2613.6,2613.3,1.13615546]
[1724353541161,1.59916099,2613.6,2613.4,3.82639]
[1724353541525,2.3926826,2613.9,2613.6,3.82614]
[1724353541526,1.59916099,2613.8,2613.6,3.82614]
[1724353541747,1.59916099,2613.9,2613.6,3.82614]
[1724353542013,1.59916099,2613.8,2613.7,1.0048]
[1724353542221,1.59916099,2613.8,2613.7,4.83079]
[1724353542517,1.59916099,2613.9,2613.7,4.83079]
[1724353542719,1.59916099,2613.9,2613.7,1.0048]
[1724353543511,1.59916099,2613.8,2613.7,1.0048]
[1724353545584,1.59916099,2613.8,2613.5,2.3956]
[1724353545783,1.59916099,2613.7,2613.5,2.3956]
[1724353546409,1.59916099,2613.8,2613.5,2.3956]
[1724353546584,1.59916099,2613.7,2613.5,2.3956]
[1724353546928,1.59916099,2613.8,2613.5,3.017807]
[1724353547643,1.59916099,2613.8,2613.5,6.844077]
[1724353548621,1.59916099,2613.7,2613.6,3.82613]
[1724353548822,1.99606375,2613.9,2613.6,4.8931507]
[1724353548823,1.59916099,2613.9,2613.6,4.8931507]
[1724353548979,1.59916099,2613.9,2613.7,3.82599]
[1724353549185,1.59916099,2614.0,2613.7,3.82599]
[1724353549429,1.59916099,2613.9,2613.6,4.8931407]
[1724353549604,1.59916099,2613.9,2613.7,1.17372177]
[1724353550535,3.826,2613.7,2613.5,2.3956]
[1724353550684,5.42501099,2613.8,2613.5,2.3956]
[1724353550878,1.59916099,2613.7,2613.5,2.3956]
[1724353551491,1.59916099,2613.8,2613.5,2.3956]
[1724353551860,1.59916099,2613.8,2613.6,0.922202]
[1724353552527,1.59916099,2613.8,2613.6,8.574362]
[1724353552731,1.59916099,2613.9,2613.6,8.574362]
[1724353553589,1.59916099,2613.9,2613.7,3.82597]
[1724353554391,1.59916099,2613.9,2613.6,0.922202]
[1724353554392,1.59916099,2613.9,2613.6,8.574442]
[1724353555245,1.59916099,2613.9,2613.7,0.61757216]
[1724353555749,1.59916099,2613.9,2613.7,4.44353216]
[1724353556445,1.59916099,2613.9,2613.7,0.61757216]
[1724353556588,1.59916099,2613.9,2613.6,4.748332]
[1724353556791,1.59916099,2613.8,2613.6,4.748332]
[1724353556994,1.59916099,2613.8,2613.6,0.922202]
[1724353557222,1.59916099,2613.9,2613.6,4.748252]
[1724353557538,1.59916099,2613.9,2613.7,3.8259]
[1724353557750,1.59916099,2613.9,2613.8,0.8574152]
[1724353558095,1.59916099,2614.0,2613.8,0.8574152]
[1724353559256,1.59916099,2614.0,2613.9,2.3453]
[1724353559464,1.59916099,2614.1,2613.9,6.17088]
[1724353559621,1.59916099,2614.1,2614.0,0.70282952]
[1724353559830,1.99586987,2614.2,2613.9,6.17088]
[1724353560011,1.59665769,2614.1,2613.9,6.17088]
[1724353560349,1.99586987,2614.0,2613.8,0.8574152]
[1724353560551,1.99586987,2614.0,2613.7,6.17118]
[1724353560552,1.59655876,2613.9,2613.5,6.17151]
[1724353560761,1.59655876,2613.9,2613.6,3.917151]
[1724353561326,3.82591,2613.8,2613.6,3.0]
[1724353561525,3.91385876,2613.8,2613.3,6.17178]
[1724353561708,1.59655876,2613.7,2613.3,6.17178]
[1724353561908,1.59655876,2613.7,2613.3,11.298139]
[1724353562325,1.59655876,2613.7,2613.4,3.82642]
[1724353562736,1.59655876,2613.7,2613.3,7.471639]
[1724353563063,1.59655876,2613.7,2613.3,5.126339]
[1724353563368,1.59655876,2613.6,2613.2,3.82672]
[1724353563524,1.59655876,2613.6,2613.3,3.0]
[1724353564066,3.82643,2613.4,2613.3,3.0]
[1724353564272,5.42296876,2613.5,2613.0,6.82692]
[1724353564567,1.59655876,2613.5,2613.3,3.82648]
[1724353564714,1.59655876,2613.7,2613.4,3.82631]
[1724353565060,1.59655876,2613.6,2613.4,4.827379]
[1724353565408,1.59655876,2613.7,2613.4,4.827379]
[1724353565644,1.59655876,2613.7,2613.5,3.82625]
[1724353565808,1.59655876,2613.7,2613.6,0.4827319]
[1724353566035,1.59655876,2613.8,2613.6,0.4827319]
[1724353566344,1.59655876,2613.7,2613.6,0.4827319]
[1724353569725,1.59655876,2613.7,2613.6,4.3088719]
[1724353569925,1.59655876,2614.0,2613.7,3.82599]
[1724353570129,1.59655876,2614.0,2613.8,4.63925619]
[1724353570565,1.59655876,2614.0,2613.9,3.8257]
[1724353571370,1.59655876,2614.1,2613.9,3.8257]
[1724353572036,1.59655876,2614.0,2613.8,4.63931619]
[1724353573074,1.59655876,2613.9,2613.8,4.63931619]
[1724353573436,1.59655876,2614.0,2613.8,4.63931619]
[1724353573637,1.59655876,2614.0,2613.8,0.81348619]
[1724353573842,1.59655876,2614.0,2613.5,3.82627]
[1724353574064,1.59655876,2613.9,2613.5,3.82627]
[1724353575706,1.59655876,2613.9,2613.5,3.8262]
[1724353575996,1.59655876,2613.8,2613.5,7.65237]
[1724353577073,1.59655876,2613.8,2613.5,3.82617]
[1724353577368,1.59655876,2613.9,2613.5,8.943744]
[1724353577579,1.59655876,2613.8,2613.6,3.82613]
[1724353577969,1.59655876,2613.9,2613.6,3.82613]
[1724353578697,1.59655876,2613.8,2613.6,3.82613]
[1724353578998,1.59655876,2613.8,2613.5,3.82617]
[1724353579305,1.59655876,2613.8,2613.5,3.82628]
[1724353579607,1.59655876,2613.8,2613.6,6.0871]
[1724353579755,1.9976873,2613.9,2613.6,6.0871]
[1724353579756,1.59655876,2613.9,2613.7,3.82599]
[1724353580113,1.59655876,2614.0,2613.8,3.82576]
[1724353580950,4.02685876,2613.9,2613.5,3.8262]
[1724353581156,4.02685876,2613.9,2613.3,3.0]
[1724353581157,1.59655876,2613.8,2613.3,6.82648]
[1724353581399,1.59655876,2613.7,2613.4,3.0]
[1724353581794,1.59655876,2613.6,2613.3,3.82648]
[1724353581998,1.59655876,2613.6,2613.1,6.82677]
[1724353582199,5.42276876,2613.6,2613.2,3.0]
[1724353582787,1.59655876,2613.6,2613.2,3.0]
[1724353582986,1.99781077,2613.7,2613.2,3.0]
[1724353582987,1.59655876,2613.5,2613.2,3.0]
[1724353583185,1.59655876,2613.6,2613.2,6.82665]
[1724353583474,1.59655876,2613.5,2613.2,3.0]
[1724353583676,1.59655876,2613.4,2613.2,3.0]
[1724353584603,1.59655876,2613.4,2613.2,6.82664]
[1724353584806,1.59655876,2613.4,2613.2,8.25342516]
[1724353585769,1.59655876,2613.4,2613.3,3.82657]
[1724353586673,1.59655876,2613.5,2613.3,3.82657]
[1724353590175,1.59655876,2613.4,2613.3,3.82657]
[1724353590977,1.59655876,2613.5,2613.3,3.82657]
[1724353592518,1.59655876,2613.5,2613.2,6.82672]
[1724353593018,1.59655876,2613.4,2613.0,3.82694]
[1724353593225,1.59655876,2613.3,2612.9,7.65422]
[1724353593379,1.59655876,2613.3,2612.9,3.82707]
[1724353593575,1.59655876,2613.3,2612.8,3.82729]
[1724353593576,1.59655876,2613.2,2612.8,3.82729]
[1724353593777,1.59655876,2613.2,2612.9,3.82713]
[1724353594778,1.59655876,2613.2,2613.0,3.82699]
[1724353595214,1.59655876,2613.3,2613.0,3.82699]
[1724353596814,1.59655876,2613.4,2613.2,3.82664]
[1724353597150,1.59655876,2613.4,2613.3,3.82657]
[1724353597346,1.59655876,2613.5,2613.3,3.82657]
[1724353597649,1.59655876,2613.6,2613.3,4.591907]
[1724353599140,1.59655876,2613.5,2613.3,4.591907]
[1724353600153,1.59655876,2613.6,2613.3,4.591907]
[1724353600649,1.59655876,2613.6,2613.3,0.765337]
[1724353600806,1.59655876,2613.6,2613.2,3.82672]
[1724353601012,1.59655876,2613.5,2613.2,3.82672]
[1724353601446,1.59655876,2613.6,2613.2,3.82672]
[1724353601676,1.59655876,2613.6,2613.1,7.65359]
[1724353601811,1.59655876,2613.5,2613.1,3.82679]
[1724353602011,1.59655876,2613.5,2613.1,4.448649]
[1724353605554,5.42287876,2613.5,2613.1,4.448649]
[1724353605761,5.42287876,2613.5,2613.0,3.827]
[1724353606576,7.06987876,2613.5,2613.0,3.827]
[1724353607470,3.8266,2613.3,2612.9,2.3918]
[1724353607672,3.82682,2613.2,2612.9,3.0]
[1724353608166,3.82682,2613.2,2612.8,3.0]
[1724353608668,3.8268,2613.2,2612.8,3.0]
[1724353608875,3.82659,2613.3,2612.8,3.0]
[1724353609171,5.42314876,2613.3,2612.8,7.917681]
[1724353609330,1.59655876,2613.4,2612.9,3.82709]
[1724353609671,5.42292876,2613.5,2612.9,6.10469]
[1724353609967,5.42292876,2613.5,2613.0,1.0195161]
[1724353610770,5.42292876,2613.5,2613.1,3.82686]
[1724353612851,9.24930876,2613.5,2613.0,4.8465261]
[1724353613045,1.647,2613.4,2613.0,4.8465261]
[1724353614194,5.47345,2613.4,2613.0,4.8465261]
[1724353614535,7.07000876,2613.4,2613.0,4.8465261]
[1724353617043,3.82666,2613.3,2612.8,6.82729]
[1724353617446,5.42321876,2613.3,2612.8,6.82729]
[1724353617976,1.647,2613.0,2612.5,3.82773]
[1724353618153,1.647,2613.0,2612.4,6.26517]
[1724353618154,1.647,2612.8,2612.4,6.26517]
[1724353618349,5.47434,2612.8,2612.4,2.4373]
[1724353618675,5.47434,2612.8,2612.1,1.647]
[1724353618676,5.47463,2612.6,2612.1,6.26563]
[1724353618882,5.47463,2612.6,2612.1,3.82833]
[1724353619068,7.07118876,2612.6,2612.1,7.65659]
[1724353619383,3.24355876,2612.6,2612.2,3.82818]
[1724353619535,1.647,2612.6,2612.2,3.82818]
[1724353619738,5.47461,2612.6,2612.1,3.82826]
[1724353619939,3.24355876,2612.6,2612.1,3.82832]
[1724353620376,1.59655876,2612.5,2612.1,3.82832]
[1724353620556,6.13571,2612.4,2611.9,3.82849]
[1724353620752,3.90425876,2612.4,2612.0,3.82848]
[1724353620952,2.3077,2612.4,2611.9,8.448281]
[1724353621153,2.3077,2612.4,2612.0,1.0885581]
[1724353621351,5.42430876,2612.5,2612.0,7.9169581]
[1724353621551,3.82775,2612.5,2612.0,7.9169581]
[1724353621755,3.90425876,2612.6,2612.1,3.82833]
[1724353621756,7.73187876,2612.6,2612.1,3.82833]
[1724353622352,1.59655876,2612.7,2612.3,3.82804]
[1724353623875,7.73158876,2612.8,2612.3,3.82804]
[1724353624595,7.73158876,2612.8,2612.2,2.4373]
[1724353624596,1.59655876,2612.9,2612.6,3.8276]
[1724353624773,1.59655876,2613.0,2612.7,0.38276]
[1724353625076,5.42349876,2613.1,2612.6,6.26713]
[1724353625853,3.82694,2613.1,2612.6,6.26713]
[1724353626035,3.82703,2613.0,2612.5,3.82773]
[1724353626240,6.19487,2612.9,2612.2,6.26768]
[1724353626439,6.19487,2612.9,2612.3,3.74422178]
[1724353626720,3.82751,2612.7,2612.3,3.0]
[1724353627063,3.8274,2612.8,2612.1,5.00285781]
[1724353627064,3.82762,2612.6,2612.1,5.00285781]
[1724353627366,6.19547,2612.5,2612.1,3.82832]
[1724353627583,2.3677,2612.5,2612.1,3.82832]
[1724353628113,3.82798,2612.4,2611.7,2.4396]
[1724353628427,3.96425876,2612.5,2611.7,2.4396]
[1724353628555,3.82826,2612.2,2611.7,6.26851]
[1724353628755,3.82826,2612.2,2611.2,3.82959]
[1724353628756,3.82848,2612.0,2611.3,3.82944]
[1724353629014,3.82848,2612.0,2611.4,3.82935]
[1724353629015,7.65706,2612.0,2611.4,3.82935]
[1724353629188,7.65706,2612.0,2611.3,3.82942]
[1724353629189,3.82848,2612.0,2611.3,3.82942]
[1724353629477,2.3677,2611.9,2611.3,3.82942]
[1724353629703,2.3677,2611.9,2611.3,4.839294]
[1724353629867,3.82895,2611.7,2611.2,2.4396]
[1724353630069,3.82888,2611.8,2611.2,2.4396]
[1724353630272,3.82888,2611.8,2611.3,3.82947]
[1724353630480,6.19633,2611.9,2611.3,4.839287]
[1724353630666,6.19633,2611.9,2611.3,8.668707]
[1724353630865,6.19633,2611.9,2611.3,4.839287]
[1724353631704,6.19633,2611.9,2611.3,8.668687]
[1724353632072,6.19633,2611.9,2611.3,4.839277]
[1724353632271,6.19633,2611.9,2611.3,8.668697]
[1724353633016,2.3677,2611.9,2611.4,3.82936]
[1724353633214,2.3677,2611.9,2611.4,4.9401837]
[1724353633427,6.19634,2611.9,2611.4,1.1108237]
[1724353633727,6.19634,2611.9,2611.3,8.668687]
[1724353634255,6.19634,2611.9,2611.4,3.82934]
[1724353635092,3.82887,2611.8,2611.1,6.82971]
[1724353635292,2.4907,2611.7,2610.8,2.3873]
[1724353635534,2.4907,2611.7,2611.1,3.82972]
[1724353637257,2.4907,2611.7,2611.1,4.212632]
[1724353637402,2.4907,2611.7,2611.2,3.82954]
[1724353641654,6.31964,2611.7,2611.2,3.82954]
[1724353642637,6.31964,2611.7,2611.1,4.212632]
[1724353642838,6.31964,2611.7,2611.1,8.042362]
[1724353643137,6.31964,2611.7,2611.2,3.8296]
[1724353643699,6.31964,2611.7,2611.2,6.69165028]
[1724353643700,3.82894,2611.7,2611.2,6.69165028]
[1724353645569,3.82894,2611.7,2611.2,4.39755028]
[1724353645776,7.65796,2611.7,2611.2,3.8296]
[1724353646088,3.82894,2611.7,2611.2,3.8296]
[1724353646388,2.3189,2611.9,2610.8,6.8301]
[1724353646389,3.82936,2611.4,2610.8,6.8301]
[1724353646555,2.3189,2611.3,2610.6,7.66089]
[1724353646779,3.82977,2611.2,2610.6,3.83044]
[1724353647144,3.82977,2611.2,2610.6,7.6609]
[1724353647342,3.8301,2610.9,2610.4,3.83075]
[1724353647547,3.8301,2610.9,2610.4,7.6615]
[1724353647746,3.82982,2611.1,2610.5,3.83065]
[1724353647983,3.83024,2610.9,2610.4,3.83075]
[1724353648284,3.83049,2610.7,2610.0,6.22983]
[1724353648467,3.83049,2610.7,2610.0,3.83132]
[1724353648796,7.66097,2610.7,2610.1,3.83118]
[1724353648958,3.83048,2610.7,2610.1,3.83118]
[1724353650851,3.83048,2610.7,2610.2,3.83111]
[1724353652108,3.83048,2610.7,2610.2,4.597353]
[1724353653001,3.83048,2610.7,2610.2,4.597283]
[1724353654570,3.83048,2610.7,2610.2,4.597273]
[1724353654903,3.83048,2610.7,2610.2,8.428313]
[1724353655599,3.83048,2610.7,2610.2,4.597273]
[1724353655967,3.83048,2610.7,2610.2,3.83103]
[1724353657023,3.83048,2610.7,2610.2,7.66206]
[1724353657176,3.83048,2610.7,2610.2,3.83103]
[1724353657516,3.83048,2610.7,2610.2,7.66206]
[1724353657818,3.83048,2610.7,2610.2,7.66205]
[1724353658034,3.83048,2610.7,2610.2,3.83102]
[1724353658193,3.83048,2610.7,2610.2,7.66207]
[1724353658517,3.83048,2610.7,2610.2,7.66205]
[1724353659608,3.83048,2610.7,2610.2,3.83102]
[1724353660112,2.4676,2610.8,2610.4,7.66154]
[1724353660584,3.82988,2611.1,2610.2,3.078532]
[1724353660585,2.2793,2611.1,2610.2,3.078532]
[1724353660783,2.2793,2611.1,2610.7,3.8303]
[1724353660784,6.10911,2611.1,2610.7,3.8303]
[1724353661202,6.10911,2611.1,2610.5,3.83055]
[1724353661587,3.83019,2610.9,2610.3,3.83083]
[1724353662514,3.82998,2611.0,2610.5,3.8306]
[1724353662694,3.82998,2611.0,2610.5,7.66121]
[1724353663638,3.82998,2611.0,2610.5,3.8306]
[1724353664718,3.83014,2610.9,2610.5,3.8306]
[1724353665970,6.10911,2611.1,2610.5,3.8306]
[1724353666171,6.10911,2611.1,2610.7,3.83037]
[1724353666469,3.82981,2611.1,2610.6,6.17971]
[1724353666674,7.65973,2611.1,2610.6,6.17971]
[1724353667193,7.65973,2611.1,2610.5,3.8306]
[1724353667194,3.82996,2611.0,2610.5,3.8306]
[1724353667901,3.8301,2610.9,2610.5,3.8306]
[1724353668610,3.8301,2610.9,2610.4,2.3492]
[1724353668611,3.83027,2610.8,2610.4,2.3492]
[1724353668769,3.83027,2610.8,2610.3,4.445193]
[1724353669773,3.8305,2610.7,2610.2,2.3492]
[1724353670134,3.8305,2610.7,2610.2,6.18023]
[1724353671615,3.8305,2610.7,2610.2,2.3492]
[1724353672108,3.8305,2610.7,2610.1,7.66233]
[1724353672310,2.3472,2610.9,2610.0,6.18061]
[1724353672311,3.83061,2610.6,2610.0,6.18061]
[1724353672511,2.2504,2610.5,2610.1,3.0]
[1724353672725,6.08108,2610.5,2610.1,3.0]
[1724353674590,6.08108,2610.5,2610.0,3.0]
[1724353674793,3.83046,2610.7,2610.1,7.66248]
[1724353675010,7.66096,2610.7,2610.1,8.728668]
[1724353675177,3.83046,2610.7,2610.2,3.8311]